Cogmind - Beta 15 @@@ ROGUE MODE // 2025.07.15 @ 21:55:15 Player: Cracklepappy Result: Self-destructed Performance ------------- Evolutions (5) 2500 Regions Visited (12) 2400 Robots Destroyed (353) 1765 Value Destroyed (10890) 10890 Prototype IDs (37) 740 Alien Tech Used (0) 0 Bonus (2670) 2670 TOTAL SCORE: 20965 Bonus ------- High Alert Combat Kills 1411 Follower Combat Kills 284 Entered Garrisons 200 Registered with UFD 300 Met Optimus in HQ 500 Friendly Fire -25 Cogmind --------- Core Integrity 424/1000 Matter 228/300 Energy 44/100 System Corruption 13% Temperature Cool (0) Movement Core (1550) Ox30 Location -5/Factory Parts ------- > --- POWER (2) -------- (None) > --- PROPULSION (4) --- (None) > --- UTILITY (7) ------ Advanced Heat Sink Huge Storage Unit Core Analyzer > --- WEAPON (4) ------- Mini Assault Cannon Mini Assault Cannon Mini Assault Cannon > --- INVENTORY (25) --- Scrap Suit Experimental Energy Well (379) Experimental Energy Well (0) High-capacity Matter Pod (200) Spectral Analyzer IFF Parser Particle Accelerator Particle Accelerator Experimental ECM Suite High-powered Tractor Beam Advanced Plasma Rifle Cooled Plasma Cannon Heavy Neutron Cannon Heavy Neutron Cannon Heavy Neutron Cannon Heavy Neutron Cannon Mini Assault Cannon Long-range Missile Launcher Improved Remote Datajack Improved Plasma Cutter CPS Tube (2) Impact Mace Impact Mace Peak State ------------ > --- POWER ------------ Neutrino Core > --- PROPULSION ------- Armored Huge Wheel Armored Huge Wheel > --- UTILITY ---------- Improved Cooling System Huge Storage Unit Core Analyzer Hardened Heavy Armor Plating Advanced Hacking Suite Advanced System Restoration Module > --- WEAPON ----------- Cooled Plasma Rifle Heavy Dispersion Rifle Heavy Neutron Cannon Mini Assault Cannon > --- INVENTORY -------- Wheel Scrap Suit Advanced Heat Sink Experimental Energy Well Experimental Energy Well High-capacity Matter Pod Spectral Analyzer IFF Parser Particle Accelerator Particle Accelerator Experimental ECM Suite High-powered Tractor Beam Advanced Plasma Rifle Advanced Plasma Rifle Heavy Neutron Cannon Mini Assault Cannon Mini Assault Cannon Mini Assault Cannon Mini Assault Cannon Long-range Missile Launcher Improved Remote Datajack Improved Plasma Cutter CPS Tube Impact Mace [Rating: 94] Favorites ----------- Power Cooled Deuterium Engine Engine Cooled Deuterium Engine Power Core Neutrino Core Propulsion Wheel Wheel Wheel Utility Huge Storage Unit Device Improved Cooling System Storage Huge Storage Unit Processor Core Analyzer Hackware Advanced Hacking Suite Protection Hardened Heavy Armor Plating Weapon Cooled Particle Cannon Energy Gun EM Pulse Gun Energy Cannon Cooled Particle Cannon Ballistic Gun Gauss Rifle Ballistic Cannon Improved Light Cannon Launcher Rocket Launcher Special Weapon Mining Laser Impact Weapon Power Maul Slashing Weapon Scythe Special Melee Weapon Improved Datajack Build | -11 -10 -9 -9 -8 -8 -7 -7 -7 -7 -7 -7 -5 ------- Run | Yrd Mat Mat Min Mat Gar Fac Was Fac Sto Rec Scr Fac Slots Evolved 10 | . . 2 . 2 . 2 . . . . . 4 Power 1 | . . . . . . . . . . . . 1 Propulsion 2 | . . . . . . 1 . . . . . 1 Utility 5 | . . 1 . 1 . 1 . . . . . 2 Weapon 2 | . . 1 . 1 . . . . . . . . Parts Attached 188 | 8 17 18 6 30 9 19 5 6 20 2 12 36 Power 16 | 1 2 1 . 4 . 1 . 1 2 . . 4 Engine 12 | 1 2 1 . 3 . 1 . 1 2 . . 1 Core 4 | . . . . 1 . . . . . . . 3 Reactor . | . . . . . . . . . . . . . Propulsion 31 | 2 2 3 3 5 1 7 . . 4 1 . 3 Treads . | . . . . . . . . . . . . . Leg . | . . . . . . . . . . . . . Wheel 31 | 2 2 3 3 5 1 7 . . 4 1 . 3 Hover . | . . . . . . . . . . . . . Flight . | . . . . . . . . . . . . . Utility 59 | 2 6 8 1 8 2 7 . 3 2 1 6 13 Device 27 | 1 . 3 . 4 1 3 . 1 . 1 4 9 Storage 7 | 1 3 . 1 . . 1 . . . . . 1 Processor 5 | . . 1 . . . . . 1 1 . 2 . Hackware 1 | . . . . . . . . . . . . 1 Protection 19 | . 3 4 . 4 1 3 . 1 1 . . 2 Artifact . | . . . . . . . . . . . . . Weapon 82 | 3 7 6 2 13 6 4 5 2 12 . 6 16 Energy Gun 9 | 2 2 . . . . 1 . . . . 1 3 Energy Cannon 8 | . . . . . . . 1 . 4 . 1 2 Ballistic Gun 30 | 1 . 1 2 11 5 1 4 2 3 . . . Ballistic Cannon 9 | . 2 2 . . . . . . 1 . . 4 Launcher 11 | . 2 1 . 1 . . . . 2 . 1 4 Special Weapon 6 | . . 1 . . . 1 . . 1 . 1 2 Impact Weapon 6 | . . 1 . 1 . 1 . . 1 . 1 1 Slashing Weapon 1 | . . . . . 1 . . . . . . . Piercing Weapon . | . . . . . . . . . . . . . Special Melee Weapon 2 | . 1 . . . . . . . . . 1 . Unidentified Prototypes 22 | . . 1 . 3 . 1 . 1 5 . . 11 Parts Lost 44 | . 4 6 2 10 2 2 . . . . . 18 Power 4 | . 1 . . . . . . . . . . 3 Propulsion 13 | . 2 2 . 3 1 1 . . . . . 4 Utility 15 | . 1 2 . 3 . 1 . . . . . 8 Weapon 12 | . . 2 2 4 1 . . . . . . 3 Highest Loss Streak 7 | . 3 1 2 4 1 2 . . . . . 7 To Critical Strikes . | . . . . . . . . . . . . . Average Backups 21 | 5 18 24 24 23 22 21 20 20 19 20 20 21 Power . | 1 . . 1 1 1 . . . . . . . Propulsion 2 | 1 2 3 3 3 1 1 3 3 2 2 2 1 Utility 8 | . 5 8 9 11 11 9 8 8 7 6 6 9 Weapon 8 | 1 8 10 9 5 6 9 8 7 7 9 9 6 Tool/Special . | . . . . . . . . . . . . . Unused Backups 71 | 1 12 12 . 4 9 4 . 2 1 3 3 20 Power 3 | . 1 . . 2 . . . . . . . . Propulsion 4 | 1 . 1 . . . 1 . . . . . 1 Utility 28 | . 6 4 . 1 3 1 . 2 1 1 . 9 Weapon 35 | . 5 7 . 1 6 2 . . . 2 3 9 Tool/Special 1 | . . . . . . . . . . . . 1 Average Slot Usage (%) 85 | . 99 98 99 92 82 88 84 84 83 83 64 77 Engine 8 | . 14 11 11 7 9 7 7 7 7 7 7 2 Wheel 17 | . 27 21 22 17 10 20 15 15 15 15 15 10 Device 8 | . 5 9 11 12 9 11 15 9 7 7 7 8 Storage 8 | . 14 11 13 9 9 7 7 7 7 7 7 5 Processor 2 | . . . . . . . . 4 6 7 7 5 Protection 8 | . 8 11 8 7 9 9 7 7 7 7 7 8 Energy Gun 1 | . 11 . . . . . . . . . . . Energy Cannon 6 | . . . . . . . 4 3 4 29 10 17 Ballistic Gun 13 | . 7 . 11 35 35 29 26 26 24 . . . Ballistic Cannon 7 | . 9 31 20 . . . . . . . . 3 Peak Build Rating 94 | 7 13 20 20 38 44 55 56 56 59 59 60 94 Average Rating 39 | 5 10 19 19 29 39 50 55 54 56 58 46 81 On Entrance 35 | . 7 13 20 19 38 44 55 56 54 59 40 60 Naked Turns . | . . . . . . . . . . . . . Heaviest Build 179 | 11 100 108 107 125 128 130 136 136 140 140 140 179 Greatest Support 56 | 32 32 20 32 32 28 44 44 44 44 38 38 56 Greatest Overweight (x) 10 | . 5 10 5 10 10 4 3 3 3 3 3 5 Average Overweight (x) 3 | . 1 4 3 4 8 2 2 2 2 2 2 2 Largest Inventory Capacity 25 | 8 25 25 25 25 25 25 25 25 25 25 25 25 Average Capacity 24 | 7 20 25 25 25 25 25 25 25 25 25 25 25 Most Carried 25 | 8 25 25 25 25 25 25 25 25 25 25 25 25 Average Carried 23 | 5 18 24 24 24 24 24 25 24 24 24 24 24 Final Capacity 25 | 8 25 25 25 25 25 25 25 25 25 25 25 25 Final Carried 25 | 8 25 25 25 25 25 25 25 25 25 25 25 24 Class Distribution -------------------- 42% | Tank 15% | Gunner 11% | Mutant 10% | Commander-Gunner 10% | Commander-Mutant 7% | Scavenger-Tank Dominant Class ---------------- Mutant | -10/Materials Tank | -9/Materials Tank | -9/Mines Scavenger-Tank | -8/Materials Tank | -8/Garrison Tank | -7/Factory Tank | -7/Waste Gunner | -7/Factory Gunner | -7/Storage Commander-Gunner | -7/Recycling Commander-Mutant | -7/Scraptown Tank | -5/Factory Resources | -11 -10 -9 -9 -8 -8 -7 -7 -7 -7 -7 -7 -5 ----------- Run | Yrd Mat Mat Min Mat Gar Fac Was Fac Sto Rec Scr Fac Matter Collected 11190 | 311 639 2003 419 1678 1168 1220 . 313 1681 242 235 1281 Remotely 1246 | . . 52 . . 162 401 . . 61 . . 570 Salvage Created 12697 | 284 631 1748 352 1806 947 1535 . 357 1600 1107 . 2330 Parts 678 | 22 50 100 27 114 42 81 . 15 76 43 . 108 Haulers Intercepted 24 | . 2 5 . 4 . 2 . . 6 . . 5 Recyclers Shooed 11 | . 1 . 2 2 . 2 . . 1 2 . 1 Parts Field Recycled . | . . . . . . . . . . . . . Retrieved Matter . | . . . . . . . . . . . . . Parts Self-Destructed . | . . . . . . . . . . . . . Prevented . | . . . . . . . . . . . . . Kills | -11 -10 -9 -9 -8 -8 -7 -7 -7 -7 -7 -7 -5 ------- Run | Yrd Mat Mat Min Mat Gar Fac Was Fac Sto Rec Scr Fac Combat Hostiles Destroyed 203 | . 15 38 8 37 24 18 . 4 24 5 . 30 Guns 110 | . 6 . 3 31 24 18 . 3 24 . . 1 Cannons 65 | . 2 34 3 . . . . . . 5 . 21 AOE 26 | . 7 4 2 6 . . . 1 . . . 6 Classes Destroyed 20 | 3 5 6 . 2 1 1 . . . . . 2 Worker 37 | 1 3 8 3 2 . 5 . 4 5 . . 6 Builder 24 | . . 3 . 4 . 4 . 1 2 1 . 9 Tunneler 12 | 8 . . 3 . . . . . . . . 1 Hauler 24 | . 2 5 . 4 . 2 . . 6 . . 5 Recycler 35 | 1 1 6 2 1 . 4 . 1 4 10 . 5 Mechanic 2 | . . 1 . 1 . . . . . . . . Operator 2 | . 1 . . . . . . . . . . 1 Watcher 13 | . 3 5 . . 1 . . 1 2 . . 1 Swarmer 36 | . 6 4 5 10 8 . . . . 1 . 2 Saboteur 1 | . . . . . . . . . . . . 1 Grunt 101 | . 9 19 3 21 12 11 . 3 15 . . 8 Brawler 3 | . . 2 . . . . . . 1 . . . Duelist 4 | . . 2 . . . 2 . . . . . . Protector 3 | . . 1 . . 1 . . . . . . 1 Sentry 28 | . . 10 . 5 1 1 . 1 7 2 . 1 Demolisher 1 | . . . . . 1 . . . . . . . Specialist 5 | . . . . 1 . . . . . . . 4 Hunter 8 | . . . . 1 1 1 . . . . . 5 Programmer 12 | . . . . . . 2 . . 1 2 . 7 Behemoth 1 | . . . . . . . . . . . . 1 Thug 1 | . . . . . . 1 . . . . . . Best Kill Streak 24 | 2 4 9 6 8 9 11 . 6 7 3 . 24 Combat Bots Only 9 | . 4 5 4 6 9 6 . 4 4 3 . 7 Max Kills in Single Turn 9 | 1 3 3 3 3 2 4 . 3 3 1 . 9 Gunslinging 2 | . . . . 1 1 2 . . 1 . . . Exploded 4 | . 2 3 2 2 . . . 1 . . . 4 Melee . | . . . . . . . . . . . . . Uniques/NPCs Destroyed . | . . . . . . . . . . . . . Combat | -11 -10 -9 -9 -8 -8 -7 -7 -7 -7 -7 -7 -5 -------- Run | Yrd Mat Mat Min Mat Gar Fac Was Fac Sto Rec Scr Fac Hostile Shots Fired 1257 | . 58 128 41 185 79 101 . 15 229 41 . 380 Missed 422 | . 24 30 12 55 23 32 . 4 84 15 . 143 Hits 835 | . 34 98 29 130 56 69 . 11 145 26 . 237 Melee 13 | . . 6 4 . . 3 . . . . . . Projectile 822 | . 34 92 25 130 56 66 . 11 145 26 . 237 AOE 5 | . . . . . 5 . . . . . . . Critical Strikes 21 | . . 2 . 6 1 8 . . 1 . . 3 Part Disruptions 4 | . . . . . . 1 . . . . . 3 Damage Taken 13168 | . 445 1367 346 1916 870 1167 . 133 1515 298 . 5111 Core 1349 | . 99 158 79 209 69 53 . . 90 16 . 576 Absorbed by Shields 159 | . . . . 124 . . . . . 35 . . Ignored by Resistances 201 | . . . . . . . . . . . . 201 Regen/Repaired (Parts) 518 | . . 103 . . . 218 . . 197 . . . Core Remaining (%) 65 | 100 60 . 40 . 49 . . . . . 77 . Volleys Fired 684 | 31 64 122 28 112 63 56 17 13 65 21 . 92 Largest 4 | 2 2 3 3 4 4 4 4 4 4 4 . 4 Hottest 284 | 60 80 100 89 102 112 112 112 112 120 120 . 284 Shots Fired 2196 | 62 122 357 80 446 197 220 23 37 256 83 . 313 Gun 1342 | 62 88 6 29 438 197 219 8 34 247 . . 14 Cannon 824 | . 28 348 49 1 . . 15 3 9 83 . 288 Launcher 26 | . 6 2 2 7 . . . . . . . 9 Special 4 | . . 1 . . . 1 . . . . . 2 Kinetic 1756 | 31 66 354 78 439 197 219 8 34 247 . . 83 Thermal 370 | 31 9 1 . . . . 15 3 9 83 . 219 Explosive 26 | . 6 2 2 7 . . . . . . . 9 Electromagnetic 41 | . 41 . . . . . . . . . . . Robot Hit Streak 15 | 8 8 15 6 10 10 12 5 14 8 4 . 15 Robot Miss Streak 19 | 3 4 5 4 9 3 7 6 7 19 2 . 3 Penetration Max 1 | . . . . 1 1 1 . . . . . . Secondary Targets 27 | . . . . 7 6 8 . 1 5 . . . Max Gunslinging Chain 2 | . . . . 1 1 2 . 1 1 . . . Shots Hit Robots 1190 | 38 75 173 34 233 94 122 8 29 184 37 7 156 Core Hits 729 | 14 37 79 18 98 48 55 5 41 209 22 . 103 Critical Kills 10 | . 1 . . 3 1 4 . . . . . 1 Critical Parts Destroyed 6 | 1 . . . . 1 3 . . 1 . . . Critical Strikes 32 | 1 1 12 2 3 2 7 . . 1 . . 3 Meltdown 1 | . . . . . . . . . . . . 1 Destroy 14 | 1 1 . . 3 2 7 . . . . . . Blast 16 | . . 12 2 . . . . . . . . 2 Smash 1 | . . . . . . . . . 1 . . . Melee Attacks 22 | . . 1 . . 6 . . . 6 . 7 2 Impact 9 | . . 1 . . . . . . 6 . . 2 Slashing 6 | . . . . . 6 . . . . . . . Piercing . | . . . . . . . . . . . . . Sneak Attacks 8 | . . . . . . . . . 1 . 7 . Combat Hostiles . | . . . . . . . . . . . . . Follow-up Attacks . | . . . . . . . . . . . . . Damage Inflicted 29733 | 382 1410 4210 950 4782 1617 3120 179 778 2987 1243 . 8075 Guns 13261 | 382 625 58 200 3647 1617 3120 179 448 2808 . . 177 Cannons 11388 | . 438 3909 516 18 . . . 64 82 1176 . 5185 Explosions 4904 | . 347 243 234 1117 . . . 250 . . . 2713 Melee 97 | . . . . . . . . . 97 . . . Ramming 83 | . . . . . . . . 16 . 67 . . Kinetic 18405 | 116 608 3967 716 3665 1617 3120 179 448 2808 . . 1161 Thermal 6219 | 266 92 . 88 . . . . 314 82 1176 . 4201 Explosive 4518 | . 299 243 146 1117 . . . . . . . 2713 Electromagnetic 411 | . 411 . . . . . . . . . . . Impact 97 | . . . . . . . . . 97 . . . Slashing . | . . . . . . . . . . . . . Piercing . | . . . . . . . . . . . . . Highest Corruption 25 | . . 4 4 1 1 2 21 22 22 25 25 13 Average Corruption 8 | . . 4 4 1 1 1 14 21 22 24 25 7 Corruption Purged 4 | . . . . . . . . . . . . 4 Corruption Blocked . | . . . . . . . . . . . . . Effects 299 | . . 57 19 9 14 4 9 24 72 74 1 16 Message Errors 81 | . . 13 9 1 5 1 2 5 18 23 . 4 Matter Fused 68 | . . 20 5 2 4 . 3 8 11 11 . 4 Heat Flow Errors 31 | . . 7 2 2 1 . 1 2 6 9 . 1 Energy Discharges 29 | . . 5 2 1 . 1 . 3 8 6 . 3 Parts Rejected 5 | . . 1 . . . . 2 . 1 . . 1 Parts Fused 2 | . . . . 1 . . . . . 1 . . Data Loss (minor) 34 | . . 5 1 . 2 1 1 1 7 13 1 2 Data Loss (major) 6 | . . 1 . 1 . . . 1 . 3 . . Misfires 11 | . . 1 . . . . . . 7 3 . . Alerts 5 | . . 2 . . 1 . . 1 1 . . . Misdirections 3 | . . . . . . . . . 2 1 . . Weapon Failures 24 | . . 2 . 1 1 1 . 3 11 4 . 1 Overload Shots 9 | . . . . . . . . . . . . 9 Effects 1 | . . . . . . . . . . . . 1 Energy Bleed 1 | . . . . . . . . . . . . 1 Overflow Damage 651 | . 73 21 14 86 . . . 69 97 54 . 237 Projectiles 186 | . . 21 13 . . . . . . 54 . 98 Explosions 368 | . 73 . 1 86 . . . 69 . . . 139 Melee 97 | . . . . . . . . . 97 . . . Knockbacks 50 | . 4 25 6 . . . . . . . . 15 Impact . | . . . . . . . . . . . . . Kinetic 47 | . 4 23 6 . . . . . . . . 14 Secondary 3 | . . 2 . . . . . . . . . 1 Self-Inflicted Damage 358 | . 112 8 . 158 . . . 8 . 33 . 39 Shots 8 | . 3 1 . 2 . . . . . . . 2 Rammed 2 | . . . . . . . . 1 . 1 . . Targets Rammed 2 | . . . . . . . . 1 . 1 . . Kicked . | . . . . . . . . . . . . . Crushed . | . . . . . . . . . . . . . Highest Temperature 467 | 40 135 315 167 165 171 215 187 175 225 241 . 467 Average Temperature 59 | 21 34 75 34 29 37 69 61 85 53 86 . 75 Received Heat Transfer 3628 | . 99 516 33 766 333 582 . 63 573 24 . 639 Effects 2 | . . 1 . . . 1 . . . . . . Energy Bleed 2 | . . 1 . . . 1 . . . . . . Siege Activations . | . . . . . . . . . . . . . Martial Activations . | . . . . . . . . . . . . . Shielding Activations . | . . . . . . . . . . . . . Robots Disrupted . | . . . . . . . . . . . . . Combat Hostiles . | . . . . . . . . . . . . . Robots Corrupted . | . . . . . . . . . . . . . Combat Hostiles . | . . . . . . . . . . . . . Parts Fried 2 | . 1 . . . . . . . 1 . . . Impact Corruptions 1 | . . . . . . . . . 1 . . . Robots Melted 2 | . . . . . . . . . . . . 2 Combat Hostiles 2 | . . . . . . . . . . . . 2 Parts Melted 16 | . . . . . . . . 1 . 2 . 13 Heat Transferred 7559 | 600 150 . 100 . . . . 300 111 1535 . 4763 Parts Sabotaged . | . . . . . . . . . . . . . Parts Stolen . | . . . . . . . . . . . . . Parts Stripped . | . . . . . . . . . . . . . Power Chain Reactions 2 | . 2 . . . . . . . . . . . Alert | -11 -10 -9 -9 -8 -8 -7 -7 -7 -7 -7 -7 -5 ------- Run | Yrd Mat Mat Min Mat Gar Fac Was Fac Sto Rec Scr Fac Maximum Alert Level 5 | . 1 2 1 3 5 3 1 1 2 1 . 2 Low Security (%) 33 | 100 49 45 74 11 . . . 65 13 31 . 66 Level 1 28 | . 50 31 25 25 . . 100 34 42 68 . 3 Level 2 16 | . . 23 . 57 12 . . . 44 . . 29 Level 3 15 | . . . . 5 47 100 . . . . . . Level 4 4 | . . . . . 31 . . . . . . . Level 5 1 | . . . . . 8 . . . . . . . High Security . | . . . . . . . . . . . . . Max Security . | . . . . . . . . . . . . . Peak Influence 1738 | 5 294 547 302 755 1738 1086 364 285 495 261 . 663 Initial 912 | . . 87 210 69 485 912 364 173 96 175 . . Average 407 | 1 137 246 130 435 1056 877 308 146 330 210 . 193 Influence Increases 8611 | 50 615 1389 397 1282 1273 601 4 359 838 605 . 1198 Destroy 0b10 Robot/C 4200 | . 300 740 220 820 460 360 . 80 480 160 . 580 Destroy 0b10 Robot/NC 780 | 50 50 145 40 70 10 75 . 35 95 65 . 145 Destroy Leader 910 | . 70 220 40 178 20 74 . 22 156 . . 130 Allied During Kill 92 | . . . 27 22 . . . . . 43 . . Successful Hack 227 | . 37 54 . 16 28 . . 22 11 23 . 36 Select Force Hacks 210 | . . . . . . . . . . 210 . . Disable Machine 780 | . 75 150 45 75 15 60 . 165 60 60 . 75 Anti-Garrison Action 650 | . . . . . 650 . . . . . . . Destroy Structure 522 | . 38 50 25 56 75 32 4 35 6 29 . 172 Partial Spotted 45 | . . . . 15 . . . . 15 . . 15 Lose Combat Pursuer 195 | . 45 30 . 30 15 . . . 15 15 . 45 Influence Decreases 7967 | 50 407 1058 757 714 282 1298 797 394 599 839 218 554 Entered New Map 3012 | . . 121 329 110 262 826 677 75 117 277 218 . Time Decay 4091 | 50 367 664 408 464 . 452 100 198 482 542 . 364 Lost Part 431 | . 40 51 20 100 20 20 . . . . . 180 Lost Ally 90 | . . . . 40 . . 20 . . 20 . 10 Purge Threat 343 | . . 222 . . . . . 121 . . . . Squads Dispatched 38 | . 3 4 . 8 . 9 . 1 5 . . 8 Investigation 9 | . 1 1 . 2 . 2 . 1 1 . . 1 Extermination 7 | . . . . . . 3 . . 2 . . 2 Reinforcement 14 | . 2 2 . 1 . 2 . . 2 . . 5 Assault 4 | . . 1 . 1 . 2 . . . . . . Garrison 4 | . . . . 4 . . . . . . . . Intercept . | . . . . . . . . . . . . . Searches Triggered . | . . . . . . . . . . . . . Construction Impeded 2 | . . . . . . 1 . . . . . 1 Haulers Reinforced 4 | . . . . . . 1 . . 2 . . 1 Active Scanning Responses . | . . . . . . . . . . . . . Cargo Convoy Interrupts 1 | . . . . . . . . . . . . 1 Stealth | -11 -10 -9 -9 -8 -8 -7 -7 -7 -7 -7 -7 -5 --------- Run | Yrd Mat Mat Min Mat Gar Fac Was Fac Sto Rec Scr Fac Distress Signals 14 | . . 4 . 3 . . . . 2 . . 5 Communications Jammed . | . . . . . . . . . . . . . Distress Signals . | . . . . . . . . . . . . . Times Spotted 313 | . 26 51 11 58 28 31 9 6 28 8 . 57 Peak Tracking Total 13 | . 4 5 5 6 3 5 6 3 5 4 . 13 Tactical Retreats 15 | . 2 2 . 2 1 . 3 . 1 1 . 3 Traps | -11 -10 -9 -9 -8 -8 -7 -7 -7 -7 -7 -7 -5 ------- Run | Yrd Mat Mat Min Mat Gar Fac Was Fac Sto Rec Scr Fac Traps Triggered 14 | . 3 . . . 7 2 . . 2 . . . Indirectly . | . . . . . . . . . . . . . Trap Hack Attempts 40 | . 3 37 . . . . . . . . . . Triggered . | . . . . . . . . . . . . . Disarmed 4 | . 1 3 . . . . . . . . . . Reprogrammed . | . . . . . . . . . . . . . Reused . | . . . . . . . . . . . . . Traps Extracted . | . . . . . . . . . . . . . Installed . | . . . . . . . . . . . . . Triggered . | . . . . . . . . . . . . . Machines | -11 -10 -9 -9 -8 -8 -7 -7 -7 -7 -7 -7 -5 ---------- Run | Yrd Mat Mat Min Mat Gar Fac Was Fac Sto Rec Scr Fac Machines Disabled 57 | . 5 10 3 5 6 4 . 11 4 4 . 5 Max in Single Turn 10 | . 2 3 2 2 1 2 . 10 1 1 . 1 Garrison Relay 5 | . . . . . 5 . . . . . . . Machines Repaired . | . . . . . . . . . . . . . Machines Dismantled 1 | . . . . . . . . . 1 . . . Machines Sabotaged . | . . . . . . . . . . . . . Overloaded Fab Kills . | . . . . . . . . . . . . . Hacking | -11 -10 -9 -9 -8 -8 -7 -7 -7 -7 -7 -7 -5 --------- Run | Yrd Mat Mat Min Mat Gar Fac Was Fac Sto Rec Scr Fac Machines Accessed 67 | . 6 14 . 5 3 6 . 4 10 12 2 5 Terminals 43 | . 6 11 . 2 3 2 . 2 9 5 . 3 Fabricators 5 | . . . . . . 2 . 2 . . . 1 Repair Stations 5 | . . 1 . 1 . 2 . . 1 . . . Recycling Units 8 | . . . . . . . . . . 7 . 1 Scanalyzers 3 | . . 2 . 1 . . . . . . . . Garrison Access 1 | . . . . 1 . . . . . . . . Total Hacks 151 | . 17 44 . 12 6 13 . 6 16 23 5 9 Successful 63 | . 7 17 . 5 2 3 . 4 5 9 5 6 Failed 88 | . 10 27 . 7 4 10 . 2 11 14 . 3 Catastrophic 18 | . 2 2 . 1 . 2 . 1 4 5 . 1 Database Lockouts . | . . . . . . . . . . . . . Manual 73 | . 15 18 . 5 . 9 . 2 6 14 . 4 Terminals 97 | . 17 33 . 3 6 3 . 3 14 13 . 5 Fabricators 13 | . . . . . . 7 . 3 . . . 3 Repair Stations 10 | . . 3 . 2 . 3 . . 2 . . . Recycling Units 11 | . . . . . . . . . . 10 . 1 Scanalyzers 11 | . . 8 . 3 . . . . . . . . Garrison Access 4 | . . . . 4 . . . . . . . . Terminal Hacks 22 | . 1 4 . . 2 . . 2 4 2 5 2 Record 4 | . . . . . . . . . . . 4 . Part Schematic 1 | . . . . . . . . . . 1 . . Prototype ID Bank 1 | . . 1 . . . . . . . . . . Open Door 3 | . . . . . . . . . 3 . . . Branch Access Points 3 | . . 1 . . . . . 1 . . . 1 Emergency Access Points 1 | . . . . . 1 . . . . . . . Terminal Index 1 | . . . . . . . . . . 1 . . Alert Level 1 | . . . . . . . . . . . . 1 Unreport Threat 3 | . . 2 . . . . . 1 . . . . Locate Traps 1 | . . . . . . . . . 1 . . . Hauler Manifests 1 | . 1 . . . . . . . . . . . Garrison Registry 1 | . . . . . 1 . . . . . . . Proto ID Catalog 1 | . . . . . . . . . . . 1 . Fabricator Hacks 5 | . . . . . . 2 . 2 . . . 1 Network Status 2 | . . . . . . 1 . . . . . 1 Load Schematic 2 | . . . . . . 1 . 1 . . . . Build 1 | . . . . . . . . 1 . . . . Repair Station Hacks 3 | . . 2 . 1 . . . . . . . . Scan Component 2 | . . 1 . 1 . . . . . . . . Repair 1 | . . 1 . . . . . . . . . . Recycling Unit Hacks . | . . . . . . . . . . . . . Scanalyzer 8 | . . 5 . 3 . . . . . . . . Insert Component 4 | . . 3 . 1 . . . . . . . . Analyze 4 | . . 2 . 2 . . . . . . . . Garrison Access Hacks 1 | . . . . 1 . . . . . . . . Unlock Access 1 | . . . . 1 . . . . . . . . Unauthorized Hacks 24 | . 6 6 . . . 1 . . 1 7 . 3 Terminals 12 | . 6 6 . . . . . . . . . . Skim 12 | . 6 6 . . . . . . . . . . Fabricators 2 | . . . . . . . . . . . . 2 Report 1 | . . . . . . . . . . . . 1 Haulers 1 | . . . . . . . . . . . . 1 Repair Stations 2 | . . . . . . 1 . . 1 . . . Patch 2 | . . . . . . 1 . . 1 . . . Recycling Units 8 | . . . . . . . . . . 7 . 1 Tunnel 7 | . . . . . . . . . . 7 . . Fedlink 1 | . . . . . . . . . . . . 1 Scanalyzers . | . . . . . . . . . . . . . Garrison Access . | . . . . . . . . . . . . . Data Cores Recovered 1 | . 1 . . . . . . . . . . . Used . | . . . . . . . . . . . . . Hacking Detections 52 | . 6 14 . 5 1 6 . 4 8 5 . 3 Full Trace Events 10 | . . 2 . 2 . 1 . 1 . 4 . . Feedback Events 2 | . . . . 1 . . . . . 1 . . Corruption 2 | . . . . 1 . . . . . 1 . . Feedback Blocked . | . . . . . . . . . . . . . Robot Schematics Acquired . | . . . . . . . . . . . . . Robots Built . | . . . . . . . . . . . . . Authchips . | . . . . . . . . . . . . . Time . | . . . . . . . . . . . . . Total Robot Build Rating . | . . . . . . . . . . . . . Part Schematics Acquired 4 | . . 2 . 1 . . . . . 1 . . Parts Built 1 | . . . . . . . . 1 . . . . Authchips . | . . . . . . . . . . . . . Time 84 | . . . . . . . . 84 . . . . Total Part Build Rating 4 | . . . . . . . . 4 . . . . Parts Repaired 1 | . . 1 . . . . . . . . . . Time 32 | . . 32 . . . . . . . . . . Parts Recycled . | . . . . . . . . . . . . . Recycled Matter . | . . . . . . . . . . . . . Retrieved Matter . | . . . . . . . . . . . . . Retrieved Components . | . . . . . . . . . . . . . Parts Scanalyzed 4 | . . 3 . 1 . . . . . . . . Part Schematics Acquired 3 | . . 2 . 1 . . . . . . . . Parts Damaged . | . . . . . . . . . . . . . Bothacking | -11 -10 -9 -9 -8 -8 -7 -7 -7 -7 -7 -7 -5 ------------ Run | Yrd Mat Mat Min Mat Gar Fac Was Fac Sto Rec Scr Fac Used RIF Installer . | . . . . . . . . . . . . . Robots Hacked 9 | . . . . . . 1 . . . . 7 1 Non-combat 4 | . . . . . . 1 . . . . 2 1 Combat 5 | . . . . . . . . . . . 5 . Robot Hacks Applied 9 | . . . . . . 1 . . . . 7 1 parse_system 7 | . . . . . . . . . . . 7 . find_chute 2 | . . . . . . 1 . . . . . 1 Relay Couplers Released 25 | . . . . . 25 . . . . . . . Machine Destruction 25 | . . . . . 25 . . . . . . . Fabnet Peak Effective % . | . . . . . . . . . . . . . Robots Rewired 7 | . . . . . . . . . . 7 . . Allies Hacked . | . . . . . . . . . . . . . Hacks Repelled . | . . . . . . . . . . . . . Allies | -11 -10 -9 -9 -8 -8 -7 -7 -7 -7 -7 -7 -5 -------- Run | Yrd Mat Mat Min Mat Gar Fac Was Fac Sto Rec Scr Fac Total Allies 11 | . . . 3 . . . 1 . . 7 . . Largest Group 7 | . . . 3 3 . . 1 . . 7 4 3 Highest-Rated Group 142 | . . . 40 40 . . 31 . . 142 93 73 Highest-Rated Ally 40 | . . . 16 16 . . 31 . . 40 40 40 Initial Warlord ECA Mod 48 | . . . . . . 8 8 8 8 8 8 . Total Orders . | . . . . . . . . . . . . . Ally Attacks 84 | . . . 25 32 . . 6 . . 15 . 6 Total Damage 835 | . . . 205 261 . . 106 . . 191 . 72 Kills 12 | . . . 3 6 . . . . . 3 . . Allies Corrupted . | . . . . . . . . . . . . . Allies Melted . | . . . . . . . . . . . . . Intel | -11 -10 -9 -9 -8 -8 -7 -7 -7 -7 -7 -7 -5 ------- Run | Yrd Mat Mat Min Mat Gar Fac Was Fac Sto Rec Scr Fac Active Infowar (turns) 1452 | 85 649 . . . 125 . . . . . 2 591 Optics 2 | . . . . . . . . . . . 2 . IFF 589 | . . . . . . . . . . . . 589 Seismic 859 | 85 649 . . . 125 . . . . . . . ECM 2 | . . . . . . . . . . . . 2 Robot Analysis Total . | . . . . . . . . . . . . . Derelict Logs Recovered 1 | . . . 1 . . . . . . . . . Drone Launches . | . . . . . . . . . . . . . Drone Recoveries . | . . . . . . . . . . . . . Exploration | -11 -10 -9 -9 -8 -8 -7 -7 -7 -7 -7 -7 -5 ------------- Run | Yrd Mat Mat Min Mat Gar Fac Was Fac Sto Rec Scr Fac Turns Passed 17636 | 313 1550 2597 1038 1163 2305 1137 204 466 1253 1558 2817 1235 Spaces Moved 10056 | 208 1031 1302 638 425 924 700 115 279 649 1008 2213 564 Core 3 | 3 . . . . . . . . . . . . Treads . | . . . . . . . . . . . . . Legs . | . . . . . . . . . . . . . Wheels 10053 | 205 1031 1302 638 425 924 700 115 279 649 1008 2213 564 Hover . | . . . . . . . . . . . . . Flight . | . . . . . . . . . . . . . Fastest Speed 50 | 50 100 140 145 135 155 126 130 130 130 120 120 120 Average Speed 141 | 99 116 154 147 159 215 129 139 137 136 134 124 138 Slowest Speed 240 | 100 155 230 155 230 240 160 145 145 140 135 135 175 Overloaded Moves . | . . . . . . . . . . . . . Propulsion Burnouts . | . . . . . . . . . . . . . Robots Hopped . | . . . . . . . . . . . . . Potential Cave-ins 21 | . . . . . . . 12 . . . . 9 Cave-ins Triggered 3 | . . . . . . . . . . . . 3 Exploration Rate (%) 64 | 7 99 96 96 41 85 15 89 9 92 96 92 15 Regions Visited 12 Branch Regions 4 Pre-discovered Areas 10 | . 1 1 1 . . . . . . 7 . . Known Exits Taken 7 | . . 1 1 1 . . . 1 1 1 1 . Unknown Exits Taken 2 | 1 1 . . . . . . . . . . . Scrap Searched 7 | . . . 2 . . . . . . . 5 . Spaces Dug 55 | . 6 8 8 . . . 15 . . . . 18 Terrain Destroyed 408 | . 48 44 27 59 2 39 15 32 5 29 . 108 Melee 2 | . . . . . . . . . . . . 2 Projectile 126 | . . 19 3 . 2 3 15 . 5 29 . 50 AOE 280 | . 48 25 24 59 . 36 . 32 . . . 56 Terrain Rammed . | . . . . . . . . . . . . . Walls Destroyed . | . . . . . . . . . . . . . Machines Disabled . | . . . . . . . . . . . . . Actions | -11 -10 -9 -9 -8 -8 -7 -7 -7 -7 -7 -7 -5 --------- Run | Yrd Mat Mat Min Mat Gar Fac Was Fac Sto Rec Scr Fac Total 11900 | 256 1270 1616 681 632 1102 818 141 331 820 1162 2265 806 Wait 257 | . 75 84 1 1 15 1 . 19 22 7 3 29 Move 10044 | 207 1030 1301 637 424 923 700 114 278 648 1007 2212 563 Hop . | . . . . . . . . . . . . . Pick Up 201 | 9 45 23 3 27 15 10 . 3 15 4 9 38 Fast Attach 41 | 7 5 4 . 7 1 3 3 1 3 . 4 3 Attach 48 | . 4 7 2 7 2 3 . . 1 1 5 16 Detach 5 | . . . . 1 . . . . . 4 . . Swap 202 | 1 15 19 6 24 12 25 6 11 32 1 14 36 Drop 189 | 1 29 18 4 29 17 20 1 5 20 8 11 26 Fire 684 | 31 64 122 28 112 63 56 17 13 65 21 . 92 Melee 22 | . . 1 . . 6 . . . 6 . 7 2 Ram 2 | . . . . . . . . 1 . 1 . . Kick . | . . . . . . . . . . . . . Crush . | . . . . . . . . . . . . . Escape Stasis 49 | . . . . . 48 . . . . . . 1 Rewire 108 | . . . . . . . . . . 108 . . Trap 40 | . 3 37 . . . . . . . . . . Miscellaneous 8 | . . . . . . . . . 8 . . . Route ------- -11/Scrapyard -10/Materials (discovered 6 exits: *Mat x3 / [*Min x2] / [*Sub]) -9/Materials (discovered 4 exits: *Mat x3 / *Min) -9/Mines (discovered 3 exits: *Mat x2 / [*Zio]) -8/Materials (discovered 2 exits: Fac / Gar) -8/Garrison (discovered 3 exits: *Fac x3) -7/Factory (discovered 2 exits: *Sto x2) -7/Waste -7/Factory (discovered 4 exits: *Sto x2 / Low x2) -7/Storage (discovered 2 exits: *Fac / *Rec) -7/Recycling (discovered 2 exits: *Fac / *Scr) -7/Scraptown (discovered 2 exits: *Fac x2) -5/Factory (discovered 2 exits: Upp x2) History --------- Turn | Location | Event 24 | -11/Scrapyard | Discovered new exit (range 15) 314 | -11/Scrapyard | Entered Materials 344 | -10/Materials | Build established: Mutant 512 | -10/Materials | Discovered new exit (range 14) 765 | -10/Materials | Discovered new exit (range 6) 900 | -10/Materials | Discovered new exit (range 10) 931 | -10/Materials | Discovered new exit (range 15) 1073 | -10/Materials | Lost 3 parts (1p1n1u) 1089 | -10/Materials | Discovered new exit (range 5) 1276 | -10/Materials | Discovered new exit (range 14) 1528 | -10/Materials | Learned location of 1 exit from Recycling 1565 | -10/Materials | Learned location of 2 exits from Materials 1608 | -10/Materials | Learned location of 1 exit from Storage 1615 | -10/Materials | Learned location of 2 exits from Mines 1616 | -10/Materials | Learned location of 1 exit from Storage 1630 | -10/Materials | Learned Storage security intel 1689 | -10/Materials | Learned location of 2 exits from Subcaves 1864 | -10/Materials | Entered another Materials area 1864 | -9/Materials | Evolved 2 slots: Utility x1, Weapon x1 1865 | -9/Materials | Identified exit to Materials 1866 | -9/Materials | Identified exit to Mines 2263 | -9/Materials | Build established: Tank 2990 | -9/Materials | Repaired Imp. Light Cannon 3116 | -9/Materials | Learned location of 1 exit from Recycling 3152 | -9/Materials | Loaded intel: 10 trap records 3195 | -9/Materials | Learned Storage stockpile data 3196 | -9/Materials | Loaded intel: 17 interactive machine locations 4264 | -9/Materials | First assault squad dispatched 4461 | -9/Materials | Entered Mines 4561 | -9/Mines | A Derelict revealed a hidden shortcut to a safe place 4655 | -9/Mines | A weapon hastily lodged in a ceiling crevice suddenly fell to the ground 4725 | -9/Mines | Assisted by bots powering up and referring to "LRC-V3" 4765 | -9/Mines | Received a Rocket Launcher from a helpful Derelict 5288 | -9/Mines | Core integrity fell below 50% 5499 | -9/Mines | Entered Materials 5499 | -8/Materials | Accompanied by 3 allies 5499 | -8/Materials | Evolved 2 slots: Utility x1, Weapon x1 5500 | -8/Materials | Identified exit to Factory 5882 | -8/Materials | Garrison activated, responded to threat 5989 | -8/Materials | Lost 4 parts (1u3w) 6264 | -8/Materials | Build established: Scavenger-Tank 6299 | -8/Materials | First assault squad dispatched 6384 | -8/Materials | Garrison activated, responded to threat 6649 | -8/Materials | Identified exit to Garrison 6662 | -8/Materials | Entered Garrison 6692 | -8/Garrison | Triggered checkpoint 6771 | -8/Garrison | Garrison Relay disabled 6893 | -8/Garrison | Triggered checkpoint 6914 | -8/Garrison | Triggered checkpoint 6986 | -8/Garrison | Destroyed 9 combat bots 7082 | -8/Garrison | Triggered checkpoint 7124 | -8/Garrison | Triggered checkpoint 7214 | -8/Garrison | Build established: Tank 7277 | -8/Garrison | Triggered checkpoint 7435 | -8/Garrison | Discovered exit to Factory (range 12) 7510 | -8/Garrison | Triggered checkpoint 7916 | -8/Garrison | Discovered exit to Factory (range 13) 8029 | -8/Garrison | Triggered checkpoint 8090 | -8/Garrison | Garrison Relay disabled 8208 | -8/Garrison | Garrison Relay disabled 8222 | -8/Garrison | Triggered checkpoint 8526 | -8/Garrison | Triggered checkpoint 8533 | -8/Garrison | Core integrity fell below 50% 8562 | -8/Garrison | Discovered exit to Factory (range 73) 8562 | -8/Garrison | Discovered exit to Factory (range 72) 8562 | -8/Garrison | Discovered exit to Factory (range 26) 8600 | -8/Garrison | Garrison Relay disabled 8967 | -8/Garrison | Entered Factory 8967 | -7/Factory | Evolved 2 slots: Propulsion x1, Utility x1 9059 | -7/Factory | Discovered new exit (range 14) 9601 | -7/Factory | Discovered new exit (range 14) 9728 | -7/Factory | Allied Derelicts emerged from ambush trap array 9767 | -7/Factory | First assault squad dispatched 9800 | -7/Factory | P-60 Hacker assimilated allied HV-480(g) 10104 | -7/Factory | Sucked down chute 10104 | -7/Factory | Entered Waste 10105 | -7/Waste | Met a frightened Derelict 10116 | -7/Waste | Spotted C-40 Crusher 10119 | -7/Waste | EMP discharged 10119 | -7/Waste | System corruption reached 10% 10139 | -7/Waste | Spotted C-40 Crusher 10140 | -7/Waste | Spotted C-40 Crusher 10146 | -7/Waste | Spotted C-40 Crusher 10146 | -7/Waste | Spotted C-40 Crusher 10169 | -7/Waste | Spotted C-40 Crusher 10219 | -7/Waste | EMP discharged 10288 | -7/Waste | Discovered new exit (range 12) 10308 | -7/Waste | Entered Factory 10494 | -7/Factory | Identified exit to Storage 10494 | -7/Factory | Identified exit to Lower Caves 10635 | -7/Factory | Build established: Gunner 10653 | -7/Factory | Fabricated Hrd. Heavy Armor Plating? 10774 | -7/Factory | Entered Storage 10775 | -7/Storage | Identified exit to Factory 10775 | -7/Storage | Identified exit to Recycling 11179 | -7/Storage | Found Prototype Launcher 11179 | -7/Storage | Identified Rocket Array 11586 | -7/Storage | Used back door to open Recycling access 12027 | -7/Storage | Entered Recycling 12028 | -7/Recycling | Identified exit to Factory 12028 | -7/Recycling | Identified exit to Scraptown 12871 | -7/Recycling | Build established: Commander-Gunner 13548 | -7/Recycling | Scanned before Scraplab entrance 13564 | -7/Recycling | Entered Scraplab 13585 | -7/Recycling | Entered Scraptown 13585 | -7/Scraptown | Accompanied by 4 allies 13588 | -7/Scraptown | System corruption cleaned by C-Scrubber 13832 | -7/Scraptown | Build established: Commander-Mutant 13880 | -7/Scraptown | Discovered exit to Factory (range 13) 14010 | -7/Scraptown | Visited TADAMA 14019 | -7/Scraptown | Visited Science Testing Area 14083 | -7/Scraptown | Visited CPS Storage 14277 | -7/Scraptown | Heard Great Nut preacher, LISTEN AND RECITE! 14299 | -7/Scraptown | Visited Awakened 14320 | -7/Scraptown | Visited SPCMW 14337 | -7/Scraptown | Visited Supply Room 14420 | -7/Scraptown | Visited UFD Registry 14440 | -7/Scraptown | Registered with UFD as "Flakmech" 14479 | -7/Scraptown | Visited Modified Component R&D 14528 | -7/Scraptown | Visited Botcube Research 14560 | -7/Scraptown | Visited Junk Repository 14588 | -7/Scraptown | Visited Science Guys 14622 | -7/Scraptown | Visited Abandonware Association 14635 | -7/Scraptown | Learned abandonware demo "KABOOM.EXE" 14663 | -7/Scraptown | Visited DA-N13 Charitable Foundation 14669 | -7/Scraptown | Found DCF Scrap (29 items) 14711 | -7/Scraptown | Visited Curators Association 14866 | -7/Scraptown | Visited Chapter 10 14902 | -7/Scraptown | Visited Infowarlord's Domain 14918 | -7/Scraptown | Visited LU-1G1's Boring Crew 15118 | -7/Scraptown | Discovered exit to Factory (range 5) 15527 | -7/Scraptown | Found Spectral Analyzer 15718 | -7/Scraptown | Build established: Commander-Gunner 15842 | -7/Scraptown | Found Scrap Suit 16325 | -7/Scraptown | Met Optimus 16325 | -7/Scraptown | Accepted into 0bPrime 16402 | -7/Scraptown | Entered Factory 16402 | -5/Factory | Accompanied by 3 allies 16402 | -5/Factory | Evolved 4 slots: Power x1, Propulsion x1, Utility x2 16588 | -5/Factory | Noticed a derelict Sapper rigging charges 16689 | -5/Factory | Identified exit to Upper Caves 16705 | -5/Factory | Build established: Tank 16999 | -5/Factory | Loaded intel: 8 recycling unit locations 17159 | -5/Factory | Spotted B-75 Beast 17189 | -5/Factory | Destroyed B-75 Beast 17246 | -5/Factory | Destroyed 7 combat bots 17260 | -5/Factory | Cargo convoy interrupted 17321 | -5/Factory | Lost 7 parts (2p1n1u3w) 17372 | -5/Factory | Found Prototype Launcher 17396 | -5/Factory | Found Prototype Device 17396 | -5/Factory | Identified Exp. ECM Suite 17411 | -5/Factory | System corruption reached 10% 17419 | -5/Factory | Identified Tesla Bomb Launcher 17494 | -5/Factory | Build established: Gunner 17507 | -5/Factory | Crushed by falling debris 17516 | -5/Factory | Crushed by falling debris 17539 | -5/Factory | Crushed by falling debris 17633 | -5/Factory | Core integrity fell below 50% 17637 | -5/Factory | Self-destructed Last Messages --------------- 17612_ Slug penetrates Wall. 17613_ System corrupted: Mni. Assault Cannon rejected. 17613_ Acquired Mni. Assault Cannon. 17614_ Knocked back. 17615_ R-10 Processor collects Wheel. 17616_ H-71 Marshal calls for reinforcements. 17616_ ALERT: Hostile activity reported, dispatching reinforcements to area. 17616_ Adv. Hacking Suite destroyed. 17616_ Critical hit (Blast). 17616_ Knocked back. 17616_ K-01 Serf collects debris. 17617_ R-10 Processor collects Welding Torch. 17618_ R-10 Processor collects Structural Scanner. 17618_ U-05 Engineer builds a Wall. 17619_ Wheel destroyed. 17619_ Knocked back. 17627_ R-10 Processor collects Wheel. 17635_ System corrupted: Energy discharge (-15). 17636_ Arm. Huge Wheel destroyed. Map ----- +----------------------------------------------------+ | ?????????????????????????????????????????????????? | | ?????????????????????????????????????????????????? | | ?????????????????????????????????????????????????? | | ?????????????????????????????????????????????????? | | ??????????????????????? ????????????????????????? | | ??????????????????????? ????????????????????????? | | ???????????????? ????? ????????????????????????? | | ??????????????? ? ????????????????????????? | | ??????????????? ##+####????????????????????? | | ??????????????? ## # #????????????????????? | | ????????????#####+###### # ######???????????????? | | ????????##### # ???????????????? | | ???????? % ?????????????? | | ???????? % "" """ ""?????????????? | | ????????? % % %" """ """? ??????????? | | ?????????? % = %" """ """ ??? ???????? | | ?????????? =%H % ? #???????? | | ??????????## #xx = """ """ #???????? | | ??????????# #[ "" """ #???????? | | ???????????# ## ""% +???????? | | ???????????# # k #???????? | | ???????????# # u #???????? | | ????######## # = #???????? | | ????# """ """ # ###############???????? | | ##### """ """ # u # / ! #?????????? | | + """ """ # % @ +% = ]= #?????????? | | ##### + ;;######=[ !" """" #?????????? | | ????# # ^^ H## ###[!=] """" #?????????? | | ????# # ^ T## # #*=| = """" #?????????? | | ????# # % ###! &#/! """" #?????????? | | ????# ! ] # % ### ####!! #?????????? | | ????########### % ##########+############??????? | | ????! ???????## =!= % % ????? | | ???? ?? ????# !%!![ ????? | | ???? ?? ?????# =|%% = ????? | | ???? ? ??????# =% % = ????? | | ??##+## ???+ %! %% ?????? | | ??# +????######+############+####### #####?????? | | ??# #????????? ?? T ? ??????# ???#?????????? | | ??# #????????? ? ? ""????????#????????????? | | ??# #????????? ? ""?????????????????????? | | ??# #?????????"" """ ? ""?????????????????????? | | ### #?????????"" """ ? ???????????????????????? | | ##????????"" """ ? ???????????????????????? | | "#???????? ??? ? ???????????????????????? | | " == "#?????????????" ? ???????????????????????? | | " == "#?????????????????????????????????????????? | | =%=T#?????????????????????????????????????????? | | " *!= #?????????????????????????????????????????? | | " "#?????????????????????????????????????????? | +----------------------------------------------------+ Best States ------------- Heat Dissipation 86 Coolant Potential 50 Energy Generation 33 Energy Capacity 915 Matter Stores 450 Matter Capacity 450 Sight Range 16 Terrain Scan Density 10 Armor Coverage 825 Resistance: KI 30 Propulsion Shielding 66 Weapon Cycling 15 Evasion (%) 40 Targeting Accuracy 8 Core Analysis 6 Recoil Reduction 4 Offensive Hacking 14 Item Schematics ----------------- Imp. Light Cannon | -9/Materials | Scanalyzed Wheel | -9/Materials | Scanalyzed Hrd. Heavy Armor Plating | -8/Materials | Scanalyzed Imp. Cooling System | -7/Recycling | Hacked Robot Schematics ------------------ None Fabricated ------------ Hrd. Heavy Armor Plating | x1 | -7/Factory Repaired ---------- Imp. Light Cannon | 23% | -9/Materials Alien Tech Used ----------------- None Achievements -------------- None Challenges ------------ None Game ------ Seed MolecularFieldthrustChip Manual? 0 Play Time 02:17:29 Cumulative 1065.6 hours Start 2025.07.14 @ 22:44:42 End 2025.07.15 @ 21:55:15 Sessions 5 Manual Loads 0 Difficulty Rogue Special Mode None Game No. 530 Rogue 530 Adventurer 0 Explorer 0 Win Type - Total 23 Types 10/4/3/0/1/1/2/2/0/0 Lore% 89 Gallery% 89 Achievement% 83 Wizard Run 0 Options --------- Layout 0 ASCII 0 Keyboard 0 Movement Numpad Keybinds 0 Fullscreen 2 Font 24/Smallcaps Map View 76x50 Zoom Use 0% Tactical HUD 1 Map Filters NONE Filters SHIFT_HUE(315) Steam 1 RUN: a9a592b8-e0ff-4290-a1d4-00b35efea3e7